bitfinex/quotes_ETHUSD_20250507
["timestamp","ask_amount","ask_price","bid_price","bid_amount"]
[1746598393719,5.44811783,1835.5,1835.1,11.69158114]
[1746598393918,5.44811783,1835.5,1835.3,0.15019057]
[1746598394121,5.44811783,1835.5,1835.2,0.15063533]
[1746598394321,5.44811783,1835.5,1835.4,0.14974586]
[1746598394548,5.44811783,1835.5,1835.3,0.15019057]
[1746598394692,5.44840361,1835.4,1835.1,11.69158114]
[1746598395184,7.74969629,1835.5,1835.1,11.69158114]
[1746598396019,11.67182546,1835.6,1835.2,5.44895028]
[1746598396226,6.22378323,1835.6,1835.2,5.44895028]
[1746598396526,6.22378323,1835.6,1835.3,0.15019057]
[1746598396724,5.44811568,1835.5,1835.3,0.15019057]
[1746598398125,5.44811568,1835.5,1835.1,11.69159081]
[1746598398326,5.44811568,1835.5,1835.4,0.14974586]
[1746598398530,5.44811568,1835.5,1835.1,11.69159081]
[1746598398825,5.44811568,1835.5,1835.4,0.14974586]
[1746598399022,5.44811568,1835.5,1835.1,17.14071368]
[1746598399223,5.44811568,1835.5,1835.4,0.14974586]
[1746598399422,5.44811568,1835.5,1835.1,11.69158999]
[1746598399735,5.44846909,1835.4,1835.1,8.50490101]
[1746598400026,5.44831017,1835.5,1835.2,0.15063533]
[1746598400322,5.44831017,1835.5,1835.1,13.95408637]
[1746598400619,5.44831017,1835.5,1835.3,0.15019057]
[1746598400822,5.44831017,1835.5,1835.2,0.15063533]
[1746598401022,5.44831017,1835.5,1835.4,0.14974586]
[1746598401221,5.44831017,1835.5,1835.3,0.15019057]
[1746598401423,5.44831017,1835.5,1835.4,0.14974586]
[1746598401724,5.44831017,1835.5,1835.1,11.69168536]
[1746598402023,7.74970721,1835.5,1835.4,0.14974586]
[1746598402224,5.44841625,1835.4,1835.1,5.458]
[1746598402645,0.7958,1835.3,1835.0,10.93237999]
[1746598402792,3.09719704,1835.5,1834.9,6.2628]
[1746598403121,8.54547095,1835.5,1835.1,6.21704749]
[1746598404116,7.74967095,1835.5,1835.1,6.21704749]
[1746598404318,7.74967095,1835.5,1835.1,11.6661609]
[1746598404523,7.74967095,1835.5,1835.1,6.21701341]
[1746598405239,13.19803475,1835.5,1835.1,6.21701341]
[1746598405838,7.74967095,1835.5,1835.1,6.21701341]
[1746598406038,7.74967095,1835.5,1835.1,7.44628832]
[1746598407738,7.74967095,1835.5,1835.1,7.44624417]
[1746598407739,5.44827391,1835.5,1835.1,7.44624417]
[1746598409138,5.44827391,1835.5,1835.1,12.89535104]
[1746598409348,5.44827391,1835.5,1835.2,5.4489885]
[1746598409737,5.44827391,1835.5,1835.1,7.44624417]
[1746598409949,5.44827391,1835.5,1835.1,12.89539571]
[1746598410235,5.44827391,1835.5,1835.1,7.44624417]
[1746598410442,5.44827391,1835.5,1835.1,12.89539261]
[1746598410622,5.44827391,1835.5,1835.1,7.44624417]
[1746598410826,10.89664408,1835.5,1835.1,7.44624417]
[1746598411239,5.44827391,1835.5,1835.1,7.44624417]
[1746598411440,5.44827391,1835.5,1835.2,0.15101542]
[1746598411741,5.44827391,1835.5,1835.1,7.44624417]
[1746598412040,5.44827391,1835.5,1835.3,0.15057065]
[1746598412248,5.44827391,1835.5,1835.2,0.15101542]
[1746598412462,5.44827391,1835.5,1835.4,0.15012594]
[1746598412925,5.44827391,1835.5,1835.2,5.44898252]
[1746598413124,5.44827391,1835.5,1835.3,0.15044399]
[1746598413942,5.44827391,1835.5,1835.1,6.21696926]
[1746598414116,5.44827391,1835.5,1835.4,0.14999927]
[1746598414317,5.44827391,1835.5,1835.1,6.21696926]
[1746598414536,5.44827391,1835.5,1835.2,0.15088875]
[1746598415056,5.44827391,1835.5,1835.1,6.21696926]
[1746598415346,5.44827391,1835.5,1835.2,0.15088875]
[1746598415751,5.44827391,1835.5,1835.1,6.21696926]
[1746598416047,5.44827391,1835.5,1835.3,0.15044399]
[1746598416347,5.44827391,1835.5,1835.4,0.14999927]
[1746598416738,5.44827391,1835.5,1835.1,6.21696926]
[1746598416914,5.44827391,1835.5,1835.4,0.14999927]
[1746598417236,5.44827391,1835.5,1835.1,6.21696926]
[1746598417436,5.44827391,1835.5,1835.4,0.14999927]
[1746598417639,5.44827391,1835.5,1835.1,6.21696926]
[1746598417946,10.8966198,1835.5,1835.1,6.21696926]
[1746598418134,10.8966198,1835.5,1835.2,0.15088875]
[1746598418341,5.44827391,1835.5,1835.2,0.15088875]
[1746598418538,5.44827391,1835.5,1835.1,6.21696926]
[1746598418720,5.44827391,1835.5,1835.3,0.15044399]
[1746598418924,5.44827391,1835.5,1835.1,6.2714571]
[1746598419127,5.44827391,1835.5,1835.2,0.15088875]
[1746598419344,5.44827391,1835.5,1835.1,6.2714571]
[1746598419549,5.44827391,1835.5,1835.3,0.15044399]
[1746598419757,5.44827391,1835.5,1835.2,0.15088875]
[1746598419944,5.44827391,1835.5,1835.4,0.14999927]
[1746598420257,5.44827391,1835.5,1835.3,0.15044399]
[1746598420455,5.44827391,1835.5,1835.4,0.14999927]
[1746598421131,5.44827391,1835.5,1835.1,6.21692505]
[1746598421453,5.44799429,1835.6,1835.2,6.22148329]
[1746598421657,5.44799429,1835.6,1835.2,6.27597106]
[1746598421822,5.44799429,1835.6,1835.3,0.7546]
[1746598422322,5.44799429,1835.6,1835.4,0.14999927]
[1746598422522,5.44799429,1835.6,1835.3,0.7546]
[1746598422714,5.44799429,1835.6,1835.4,0.14999927]
[1746598422921,5.44799429,1835.6,1835.3,0.7546]
[1746598423234,5.44799429,1835.6,1835.4,0.14999927]
[1746598423557,5.44810678,1835.5,1835.3,0.7546]
[1746598426364,5.44810678,1835.5,1835.4,0.14999927]
[1746598426857,5.44810678,1835.5,1835.3,0.7546]
[1746598427061,5.44810678,1835.5,1835.4,0.14999927]
[1746598427369,5.44810678,1835.5,1835.3,0.7546]
[1746598427537,5.44810678,1835.5,1835.4,0.14999927]
[1746598427732,5.44810678,1835.5,1835.3,0.7546]
[1746598427923,5.44810678,1835.5,1835.4,0.14999927]
[1746598428125,5.44810678,1835.5,1835.3,0.7546]
[1746598428337,5.44810678,1835.5,1835.4,0.14999927]
[1746598428646,5.44810678,1835.5,1835.3,0.7546]
[1746598428847,5.44810678,1835.5,1835.4,0.14999927]
[1746598429160,5.44810678,1835.5,1835.3,0.7546]
[1746598429326,5.44810678,1835.5,1835.4,0.14999927]
[1746598429527,5.44810678,1835.5,1835.3,0.7546]
[1746598429720,5.44810678,1835.5,1835.4,0.14999927]
[1746598429923,5.44810678,1835.5,1835.3,0.7546]
[1746598430159,5.44810678,1835.5,1835.4,0.14999927]
[1746598430553,5.44810678,1835.5,1835.3,0.7546]
[1746598430773,5.44810678,1835.5,1835.4,0.14999927]
[1746598431264,5.44810678,1835.5,1835.3,0.7546]
[1746598431429,5.44810678,1835.5,1835.4,0.14999927]
[1746598431760,5.44810678,1835.5,1835.3,0.7546]
[1746598431954,5.44810678,1835.5,1835.4,0.14999927]
[1746598432345,5.44810678,1835.5,1835.3,0.7546]
[1746598432661,5.44810678,1835.5,1835.4,0.14999927]
[1746598433061,5.44810678,1835.5,1835.3,0.7546]
[1746598433271,5.44810678,1835.5,1835.4,0.14999927]
[1746598433561,5.44810678,1835.5,1835.3,0.7546]
[1746598433764,5.44810678,1835.5,1835.4,0.14999927]
[1746598434164,5.44810678,1835.5,1835.3,0.7546]
[1746598434363,5.44810678,1835.5,1835.1,10.89821355]
[1746598434364,5.44840361,1835.4,1835.2,0.7687]
[1746598434659,10.89669384,1835.5,1835.2,0.7687]
[1746598434861,10.89669384,1835.5,1835.2,1.39047841]
[1746598435633,5.44830905,1835.5,1835.2,1.39047841]
[1746598435834,10.89664385,1835.5,1835.2,1.39047841]
[1746598437059,5.44830905,1835.5,1835.2,1.39047841]
[1746598437240,10.89667622,1835.5,1835.2,1.39047841]
[1746598437743,5.44830905,1835.5,1835.2,1.39047841]
[1746598439966,5.44830905,1835.5,1835.2,6.83946047]
[1746598440130,10.89603512,1835.6,1835.2,6.83946047]
[1746598440461,5.44811757,1835.5,1835.2,6.83946047]
[1746598441166,5.44811757,1835.5,1835.2,1.39047841]
[1746598441466,5.44811757,1835.5,1835.3,0.1505284]
[1746598443276,10.89645171,1835.5,1835.3,0.1505284]
[1746598444869,10.89648867,1835.5,1835.3,0.1505284]
[1746598445371,5.44811757,1835.5,1835.3,0.1505284]
[1746598445776,7.41015695,1835.5,1835.3,0.1505284]
[1746598446073,12.85855308,1835.5,1835.3,0.1505284]
[1746598446368,5.44840361,1835.4,1835.3,0.1505284]
[1746598446574,12.85852868,1835.5,1835.3,0.1505284]
[1746598446776,12.85854355,1835.5,1835.3,0.1505284]
[1746598449880,5.44840361,1835.4,1835.3,0.1505284]
[1746598450386,7.41035817,1835.5,1835.3,0.1505284]
[1746598451460,12.85871885,1835.5,1835.3,0.1505284]
[1746598451782,10.89667947,1835.5,1835.3,0.1505284]
[1746598451982,5.44831879,1835.5,1835.3,0.1505284]
[1746598452183,10.89665643,1835.5,1835.3,0.1505284]
[1746598452382,5.44831879,1835.5,1835.3,0.1505284]
[1746598453287,5.44840361,1835.4,1835.3,0.1505284]
[1746598454385,5.44840361,1835.4,1835.0,21.42148646]
[1746598454684,5.44840361,1835.4,1835.3,0.15057065]
[1746598454882,5.44840361,1835.4,1835.0,15.97209057]
[1746598455682,5.44840361,1835.4,1835.1,0.15146023]
[1746598457064,7.41044299,1835.4,1835.1,0.15146023]
[1746598457271,12.85910806,1835.4,1835.1,0.15146023]
[1746598457488,7.41044299,1835.4,1835.1,0.15146023]
[1746598457999,5.44840361,1835.4,1835.1,0.15146023]
[1746598458290,5.44875483,1835.3,1835.1,0.15146023]
[1746598459580,7.41060157,1835.4,1835.1,0.15146023]
[1746598462478,7.41060157,1835.4,1835.1,0.65146023]
[1746598462676,5.44856219,1835.4,1835.1,0.65146023]
[1746598462871,8.1785424,1835.5,1835.1,0.65146023]
[1746598464009,8.1785424,1835.5,1835.1,6.10071304]
[1746598464496,8.1785424,1835.5,1835.1,0.65146023]
[1746598464803,5.44841188,1835.4,1835.1,0.65146023]
[1746598465608,7.41045126,1835.4,1835.1,0.65146023]
[1746598469315,5.44871783,1835.3,1835.1,0.65146023]
[1746598469611,1.96203938,1835.3,1835.1,0.15146023]
[1746598469916,7.41061572,1835.4,1835.1,0.15146023]
[1746598471911,5.44857634,1835.4,1835.1,0.15146023]
[1746598472310,5.44857634,1835.4,1835.1,5.6007533]
[1746598473414,7.40996261,1835.6,1835.2,6.26209551]
[1746598473614,5.44792323,1835.6,1835.2,6.26209551]
[1746598473811,5.44792323,1835.6,1835.3,0.13876883]
[1746598474010,7.40996261,1835.6,1835.3,0.13876883]
[1746598474215,12.8580054,1835.6,1835.3,0.13876883]
[1746598474416,14.52043299,1835.6,1835.3,0.13876883]
[1746598474603,9.07235315,1835.6,1835.3,0.13876883]
[1746598475318,14.52041071,1835.6,1835.3,0.13876883]
[1746598475720,9.07235315,1835.6,1835.3,0.13876883]
[1746598477118,7.11031377,1835.6,1835.3,0.13876883]
[1746598477298,16.61063157,1835.7,1835.3,0.13876883]
[1746598477494,22.05838007,1835.7,1835.3,5.58746334]
[1746598477824,16.61063157,1835.7,1835.3,5.58746334]
[1746598478016,16.61063157,1835.7,1835.3,0.13876883]
[1746598478198,16.61063157,1835.7,1835.3,5.58742864]
[1746598478397,0.7983,1835.9,1835.5,5.44793717]
[1746598478596,36.08190192,1836.4,1835.9,6.24274641]
[1746598478921,3.0,1836.2,1836.0,0.13498222]
[1746598479121,4.96203938,1836.2,1836.0,0.13498222]
[1746598479419,1.96203938,1836.1,1836.0,0.13498222]
[1746598479924,13.18022767,1836.2,1836.0,0.13498222]
[1746598480099,5.44632645,1836.1,1836.0,0.13498222]
[1746598480899,5.44632645,1836.1,1835.7,0.8299]
[1746598481099,5.44632645,1836.1,1836.0,0.13418125]
[1746598481289,5.44632645,1836.1,1835.7,6.27737216]
[1746598481726,5.44632645,1836.1,1835.8,0.13507015]
[1746598483230,3.0,1836.3,1835.8,0.13507015]
[1746598483402,5.44646342,1836.1,1835.8,0.13507015]
[1746598485830,5.44672469,1836.0,1835.8,0.13507015]
[1746598487225,6.27031549,1836.1,1835.8,0.13507015]
[1746598488690,11.71687214,1836.1,1835.8,0.13507015]
[1746598488896,6.27031549,1836.1,1835.8,0.13507015]
[1746598489427,11.71687715,1836.1,1835.8,0.13507015]
[1746598489727,6.27031549,1836.1,1835.8,0.13507015]
[1746598490030,6.23401976,1835.9,1835.8,0.13507015]
[1746598490223,0.7871,1835.9,1835.4,0.8206]
[1746598490405,5.44756634,1835.7,1835.4,0.8206]
[1746598490606,5.44756634,1835.7,1835.5,0.12394087]
[1746598491940,7.73506786,1835.8,1835.5,0.12394087]
[1746598492140,7.73506786,1835.8,1835.5,0.7632223]
[1746598494765,5.44756135,1835.7,1835.5,0.7632223]
[1746598495066,7.73506378,1835.8,1835.5,0.7632223]
[1746598498368,5.44761399,1835.7,1835.5,0.12394087]
[1746598501775,5.44780998,1835.6,1835.5,0.12394087]
[1746598502356,2.28768542,1835.6,1835.1,11.64906982]
[1746598502558,5.44825404,1835.5,1835.1,11.648879]
[1746598502765,7.73567189,1835.6,1835.2,12.06260628]
[1746598502954,5.44798647,1835.6,1835.2,6.61371148]
[1746598503172,6.25460436,1835.7,1835.3,5.44868402]
[1746598503347,5.44736075,1835.8,1835.4,6.21710303]
[1746598503980,6.25394666,1835.9,1835.5,5.44793003]
[1746598504169,5.44704666,1835.9,1835.5,5.44793003]
[1746598504373,5.44704666,1835.9,1835.5,6.61443334]
[1746598504578,5.44704666,1835.9,1835.6,0.7817]
[1746598504882,5.432,1836.0,1835.7,5.44741559]
[1746598505184,5.44620688,1836.2,1835.8,6.22889961]
[1746598505347,5.44645719,1836.1,1835.8,0.7817]
[1746598505743,5.44620688,1836.2,1835.8,0.7817]
[1746598505994,5.44620688,1836.2,1835.8,6.22873306]
[1746598506372,5.44620688,1836.2,1835.8,6.22873131]
[1746598506709,5.44620688,1836.2,1835.9,5.44688076]
[1746598506899,5.44620688,1836.2,1835.8,0.7817]
[1746598507099,5.44620688,1836.2,1835.8,6.22871604]
[1746598508412,5.44642184,1836.1,1835.8,0.7817]
[1746598508581,7.73410726,1836.1,1835.8,0.7817]
[1746598509316,7.73410726,1836.1,1835.7,5.44734538]
[1746598509913,5.44677897,1836.0,1835.6,0.8145]
[1746598510128,5.44731524,1835.8,1835.4,6.26273596]
[1746598510282,5.44731524,1835.8,1835.6,0.12203726]
[1746598510611,5.44790869,1835.6,1835.2,9.12117948]
[1746598510776,5.44790869,1835.6,1835.3,10.87869439]
[1746598511413,2.28768542,1835.5,1835.2,4.42647946]
[1746598511620,5.44790869,1835.6,1835.2,15.30524626]
[1746598511806,5.44790869,1835.6,1835.2,16.83577089]
[1746598512001,5.44790869,1835.6,1835.2,22.28457171]
[1746598512904,5.44790869,1835.6,1835.3,5.44867858]
[1746598514428,5.44790869,1835.6,1835.2,16.8358762]
[1746598514617,5.44790869,1835.6,1835.2,5.95700409]
[1746598515146,5.44790869,1835.6,1835.2,2.28462463]
[1746598515291,2.28768542,1835.5,1835.2,0.7541]
[1746598515501,5.44856634,1835.4,1835.1,5.43]
[1746598516334,5.44871977,1835.3,1835.1,5.43]
[1746598516529,5.44905827,1835.2,1835.0,0.7927]
[1746598516732,7.73640519,1835.3,1835.0,0.7927]
[1746598516894,5.44909643,1835.2,1835.0,0.7927]
[1746598517423,5.44929431,1835.1,1834.8,16.30999039]
[1746598517598,5.44909643,1835.2,1834.9,2.46359904]
[1746598519439,5.44909643,1835.2,1835.0,18.0]
[1746598524866,5.44909643,1835.2,1834.9,2.46359904]
[1746598526971,5.44909643,1835.2,1834.9,7.91347266]
[1746598527587,10.89782118,1835.3,1834.9,7.91347266]
[1746598528286,5.44900951,1835.2,1834.9,7.91347266]
[1746598528479,5.44884478,1835.3,1834.9,7.91347266]
[1746598529176,10.89780826,1835.3,1834.9,7.91347266]
[1746598529376,10.89781655,1835.3,1834.9,7.91347266]
[1746598529577,5.44884478,1835.3,1834.9,7.91347266]
[1746598529779,10.89781918,1835.3,1834.9,7.91347266]
[1746598530508,5.44900412,1835.2,1834.9,7.91347266]
[1746598531500,5.44900412,1835.2,1834.9,0.8326]
[1746598532912,5.44931346,1835.1,1834.9,0.8326]
[1746598534588,5.44903932,1835.2,1834.9,0.8326]
[1746598540924,2.28768542,1835.1,1834.6,5.45075968]
[1746598541127,5.44973895,1835.0,1834.6,17.09501216]
[1746598541313,5.44973895,1835.0,1834.6,18.80451338]
[1746598541487,5.44973895,1835.0,1834.6,6.23301216]
[1746598541690,5.4499213,1834.9,1834.6,0.7824]
[1746598542600,7.73760672,1834.9,1834.6,0.7824]
[1746598543020,6.2395975,1834.8,1834.4,6.23129839]
[1746598543199,6.2395975,1834.8,1834.4,11.66129839]
[1746598543402,6.2395975,1834.8,1834.4,19.73420839]
[1746598543724,0.7893,1834.8,1834.5,5.45106795]
[1746598543922,0.7889,1835.0,1834.4,8.05172086]
[1746598544085,3.0,1835.1,1834.8,5.45007819]
[1746598544438,9.0475233,1835.1,1834.8,23.45007819]
[1746598544614,8.4493233,1835.1,1834.8,23.45007819]
[1746598544986,5.432,1835.2,1834.9,5.44988557]
[1746598545328,3.0,1835.2,1834.9,6.22668557]
[1746598545885,3.07658542,1835.3,1835.0,5.44936413]
[1746598546093,8.44872502,1835.3,1835.0,5.44936413]
[1746598546629,5.44857463,1835.4,1835.0,5.44936413]
[1746598546926,7.18595828,1835.4,1835.0,5.44936413]
[1746598547224,5.44870826,1835.3,1835.0,5.44936413]
[1746598547629,5.44870826,1835.3,1834.9,6.22656335]
[1746598547929,7.73639368,1835.3,1834.9,0.7768]
[1746598548117,5.44907213,1835.2,1834.9,0.7768]
[1746598548427,7.73654913,1835.3,1834.9,6.22658484]
[1746598549122,5.44939425,1835.1,1834.7,17.13871003]
[1746598549312,6.26268307,1835.2,1834.8,5.45016379]
[1746598549908,6.26268307,1835.2,1834.8,5.44996073]
[1746598550114,6.2626489,1835.2,1834.8,5.45007677]
[1746598552036,6.2626489,1835.2,1834.8,10.90007015]
[1746598552204,0.8135,1835.2,1834.9,5.4498601]
[1746598552739,3.0,1835.4,1835.1,5.44911603]
[1746598553314,5.44881478,1835.3,1834.9,11.65550816]
[1746598553599,5.44881478,1835.3,1835.0,5.44954155]
[1746598553905,10.89779161,1835.3,1834.9,6.20579567]
[1746598554103,6.23649743,1835.2,1834.8,11.6778827]
[1746598554316,6.23649743,1835.2,1834.9,5.44986917]
[1746598554517,0.7874,1835.2,1834.9,5.44986917]
[1746598554850,6.23641061,1835.2,1834.9,5.44986917]
[1746598555842,6.23641061,1835.2,1834.8,6.22792596]
[1746598556044,7.7370968,1835.1,1834.7,5.45031933]
[1746598559461,5.44941138,1835.1,1834.7,5.45031933]
[1746598559747,5.44941138,1835.1,1834.7,5.45030756]
[1746598560552,0.77,1835.0,1834.6,6.28369693]
[1746598560714,8.50729654,1835.0,1834.6,5.45059693]
[1746598560914,3.05768542,1835.0,1834.6,5.45058511]
[1746598561155,8.5072957,1835.0,1834.7,5.45048152]
[1746598561358,3.05768542,1835.0,1834.7,5.45048152]
[1746598561555,8.50732273,1835.0,1834.6,7.08174997]
[1746598561848,8.50745668,1835.0,1834.6,5.45076982]
[1746598563560,8.50745668,1835.0,1834.7,0.12317617]
[1746598563727,8.50745668,1835.0,1834.6,5.45076982]
[1746598563932,8.50745668,1835.0,1834.8,0.12264216]
[1746598564261,8.50745668,1835.0,1834.6,5.45076982]
[1746598564431,8.50745668,1835.0,1834.9,0.12210821]
[1746598564639,9.90314468,1835.0,1834.6,5.45076982]
[1746598564848,9.90314468,1835.0,1834.9,0.12210821]
[1746598565029,9.90314468,1835.0,1834.6,5.45076982]
[1746598565230,9.90314468,1835.0,1834.9,0.12210821]
[1746598565431,9.90314468,1835.0,1834.6,5.45076982]
[1746598565627,9.90314468,1835.0,1834.9,0.12210821]
[1746598565826,9.90314468,1835.0,1834.6,5.45076982]
[1746598566061,9.90314468,1835.0,1834.9,0.12210821]
[1746598566266,9.90314468,1835.0,1834.6,5.45076982]
[1746598566753,9.90314468,1835.0,1834.7,0.12317617]
[1746598567062,0.99031447,1834.9,1834.6,5.45076982]
[1746598567354,8.50745668,1835.0,1834.7,0.12317617]
[1746598567566,8.50745668,1835.0,1834.6,5.45061357]
[1746598567737,8.50745668,1835.0,1834.8,0.12264216]
[1746598567936,8.50745668,1835.0,1834.7,5.45047078]
[1746598568156,8.50745668,1835.0,1834.9,0.12210821]
[1746598568457,8.50745668,1835.0,1834.7,5.45047078]
[1746598568458,9.35820235,1835.0,1834.7,5.45047078]
[1746598568661,9.35820235,1835.0,1834.9,0.12210821]
[1746598568860,9.35820235,1835.0,1834.8,0.12264216]
[1746598569156,9.35820235,1835.0,1834.9,0.12210821]
[1746598569380,9.35820235,1835.0,1834.7,5.45047078]
[1746598569532,3.05768542,1835.0,1834.9,0.12210821]
[1746598569842,8.507331,1835.0,1834.6,5.45054479]
[1746598570033,8.507331,1835.0,1834.9,0.12210821]
[1746598570234,8.507331,1835.0,1834.6,5.45054479]
[1746598570458,8.507331,1835.0,1834.9,0.12210821]
[1746598570657,8.507331,1835.0,1834.6,5.45054479]
[1746598570859,8.507331,1835.0,1834.9,0.12210821]
[1746598571037,9.9030145,1835.0,1834.6,5.45054479]
[1746598571245,9.9030145,1835.0,1834.9,0.12210821]
[1746598571446,9.9030145,1835.0,1834.6,5.45054479]
[1746598571647,9.9030145,1835.0,1834.9,0.12210821]
[1746598571852,9.9030145,1835.0,1834.6,5.45054479]
[1746598572061,9.9030145,1835.0,1834.9,0.12210821]
[1746598572262,5.44997983,1834.9,1834.5,5.4509569]
[1746598572440,0.8195,1834.8,1834.5,7.70236473]
[1746598572639,0.8195,1834.8,1834.5,7.70229199]
[1746598572840,0.8195,1834.8,1834.6,5.45067288]
[1746598573138,0.8195,1834.8,1834.5,7.70229199]
[1746598573337,0.8195,1834.8,1834.6,5.4507627]
[1746598573777,7.73747881,1835.0,1834.6,5.45057769]
[1746598574069,8.55697881,1835.0,1834.6,5.45057769]
[1746598575176,9.95762205,1835.0,1834.6,5.45057769]
[1746598575386,5.44992967,1834.9,1834.5,5.45094485]
[1746598575553,0.7977,1834.8,1834.5,5.45094485]
[1746598575877,0.7977,1834.8,1834.5,5.45089984]
[1746598576281,0.7977,1834.8,1834.5,10.90175129]
[1746598576466,6.24800542,1834.8,1834.6,0.12416443]
[1746598576667,6.87277884,1834.8,1834.6,0.12416443]
[1746598576869,6.87277884,1834.8,1834.4,11.65330779]
[1746598577076,6.24800542,1834.8,1834.7,0.12363037]
[1746598577585,6.24800542,1834.8,1834.5,5.45104506]
[1746598577786,6.24800542,1834.8,1834.7,0.12363037]
[1746598577951,6.24800542,1834.8,1834.5,5.45104506]
[1746598578152,6.24800542,1834.8,1834.7,0.12363037]
[1746598578349,5.45087986,1834.6,1834.3,3.67237946]
[1746598578561,5.45053077,1834.7,1834.3,9.12404194]
[1746598579591,10.90126403,1834.7,1834.3,9.12404194]
[1746598579791,5.45053077,1834.7,1834.3,9.12404194]
[1746598581087,5.45053077,1834.7,1834.4,18.0]
[1746598581781,10.90130602,1834.7,1834.4,18.0]
[1746598581991,5.45053077,1834.7,1834.4,18.0]
[1746598583907,5.45053077,1834.7,1834.3,5.45166248]
[1746598584506,5.45053077,1834.7,1834.4,5.45135366]
[1746598584710,9.7054818,1834.8,1834.4,5.45135366]
[1746598584876,5.44992911,1834.9,1834.5,5.45080601]
[1746598585073,6.27780339,1835.0,1834.6,6.21786133]
[1746598586016,12.36183626,1835.2,1834.7,5.45048236]
[1746598586017,13.15057453,1835.2,1834.7,5.45048236]
[1746598586204,3.0,1835.1,1834.8,5.45006858]
[1746598586406,3.0,1835.1,1834.8,6.23366858]
[1746598587411,7.73652211,1835.3,1834.9,5.44973062]
[1746598587412,5.44883669,1835.3,1834.9,5.44973062]
[1746598587608,7.73623428,1835.4,1835.0,5.44956713]
[1746598587906,3.77362343,1835.3,1835.0,5.44956713]
[1746598588411,9.22234762,1835.3,1835.0,5.44956713]
[1746598588619,8.44872419,1835.3,1835.0,5.44956713]
[1746598588836,3.0,1835.3,1835.0,5.44956713]
[1746598590038,3.0,1835.3,1835.0,5.44942657]
[1746598595824,3.0,1835.3,1834.9,5.4496632]
[1746598596047,3.0,1835.3,1835.0,5.44955238]
[1746598596749,8.44873374,1835.3,1834.9,5.44976022]
[1746598596915,8.44873374,1835.3,1834.9,10.89943015]
[1746598597116,8.44873374,1835.3,1834.9,12.06773317]
[1746598597450,5.44905693,1835.2,1834.9,1.16830302]
[1746598597613,8.44873374,1835.3,1834.9,6.61817671]
[1746598597614,9.21250139,1835.3,1834.9,6.61817671]
[1746598597949,2.28768542,1835.2,1834.9,6.61817671]
[1746598598254,2.28768542,1835.0,1834.7,10.87925258]
[1746598598424,3.05128542,1835.0,1834.7,16.32958733]
[1746598598625,3.05128542,1835.0,1834.7,5.45025258]
[1746598599036,3.05128542,1835.0,1834.7,10.9005142]
[1746598599220,3.05128542,1835.0,1834.7,12.61527562]
[1746598599569,8.53552564,1835.2,1834.8,10.90022986]
[1746598599856,8.53552564,1835.2,1834.8,5.45004875]
[1746598600059,8.53552564,1835.2,1834.8,10.90006364]
[1746598600267,8.53552564,1835.2,1834.8,5.45001489]
[1746598600428,3.0,1835.3,1835.0,5.44955617]
[1746598601284,0.8296,1835.4,1835.1,5.44928746]
[1746598601592,3.0,1835.4,1835.1,5.44928746]
[1746598602471,3.0,1835.4,1835.1,5.44909669]
[1746598602840,3.0,1835.4,1835.2,5.44885211]
[1746598603046,5.43,1835.6,1835.3,5.44868233]
[1746598603238,9.09756558,1835.7,1835.3,5.44868233]
[1746598603680,14.54532771,1835.7,1835.3,5.44868233]
[1746598603889,5.44787492,1835.6,1835.3,5.44869393]
[1746598604486,5.44787492,1835.6,1835.2,7.33356883]
[1746598604968,5.44787492,1835.6,1835.2,1.88469326]
[1746598605170,10.89592305,1835.6,1835.2,7.3335499]
[1746598605483,5.44787492,1835.6,1835.2,7.3335499]
[1746598605990,10.895926,1835.6,1835.2,7.3335499]
[1746598606296,5.44787492,1835.6,1835.2,7.3335499]
[1746598606799,5.44787492,1835.6,1835.2,7.38803522]
[1746598607100,5.44787492,1835.6,1835.2,7.3335499]
[1746598607798,5.44827935,1835.5,1835.2,1.88469326]
[1746598608307,5.44787492,1835.6,1835.2,1.93917705]
[1746598608593,5.44787492,1835.6,1835.2,7.33360057]
[1746598609002,0.8121,1835.7,1835.3,6.18204739]
[1746598609166,11.70025151,1835.9,1835.5,6.21464648]
[1746598609485,5.44724071,1835.8,1835.5,6.21464648]
[1746598611403,6.2702841,1835.9,1835.5,6.21464648]
[1746598611559,6.2702841,1835.9,1835.5,7.3809486]
[1746598612286,5.44726747,1835.8,1835.5,7.3809486]
[1746598612492,5.44726747,1835.8,1835.5,1.93300212]
[1746598613826,7.73495289,1835.8,1835.5,1.93300212]
[1746598614123,7.73564754,1835.6,1835.3,0.7862]
[1746598614278,2.28768542,1835.6,1835.3,6.23483121]
[1746598614672,6.26841665,1835.7,1835.3,6.23483121]
[1746598615712,11.71619329,1835.7,1835.3,6.23483121]
[1746598616014,5.44783716,1835.6,1835.3,6.23483121]
[1746598616215,5.44783716,1835.6,1835.3,8.48879227]
[1746598616791,6.26841665,1835.7,1835.3,13.93728527]
[1746598617112,6.26841665,1835.7,1835.3,8.48865406]
[1746598618512,11.71620132,1835.7,1835.3,8.48865406]
[1746598618713,6.26841665,1835.7,1835.3,8.48865406]
[1746598620523,7.73508459,1835.8,1835.4,5.44830382]
[1746598620733,13.18252877,1835.8,1835.4,5.44830382]
[1746598622232,5.4475279,1835.7,1835.4,5.44830382]
[1746598622837,10.89529171,1835.7,1835.3,8.48864777]
[1746598623022,5.4475279,1835.7,1835.3,8.48864777]
[1746598623224,5.4475279,1835.7,1835.3,8.54312862]
[1746598623428,5.4475279,1835.7,1835.4,5.44839108]
[1746598623735,5.4475279,1835.7,1835.3,13.93713852]
[1746598624037,5.4475279,1835.7,1835.3,8.48863829]
[1746598625540,13.18252939,1835.8,1835.4,5.44839773]
[1746598626115,7.7350252,1835.8,1835.4,5.44839773]
[1746598626562,13.18253362,1835.8,1835.4,5.44839773]
[1746598626728,5.44751782,1835.7,1835.4,5.44839773]
[1746598629466,5.44751782,1835.7,1835.3,8.48863829]
[1746598629769,5.44751782,1835.7,1835.4,5.4483884]
[1746598630106,3.0,1836.1,1835.4,5.4483884]
[1746598630107,0.7988,1836.5,1836.0,0.779]
[1746598630226,5.44556326,1836.4,1836.0,0.779]
[1746598630566,5.44556326,1836.4,1836.0,6.22561773]
[1746598631131,5.44528989,1836.5,1836.1,6.21381661]
[1746598631437,5.44496408,1836.6,1836.2,5.44583611]
[1746598631632,0.7702,1836.8,1836.4,6.21303672]
[1746598631833,6.21467766,1836.8,1836.4,0.7676]
[1746598632084,5.44469816,1836.7,1836.4,0.7676]
[1746598632637,7.73238358,1836.7,1836.4,0.7676]
[1746598632837,2.28768542,1836.5,1836.2,0.8156]
[1746598633139,7.73304491,1836.5,1836.2,0.8156]
[1746598634968,13.17843128,1836.5,1836.2,0.8156]
[1746598635171,7.73304491,1836.5,1836.2,0.8156]
[1746598637173,2.28768542,1836.5,1836.0,0.7874]
[1746598637341,7.73354681,1836.3,1836.0,6.2424]
[1746598637660,5.44554083,1836.4,1836.0,11.68892161]
[1746598637868,10.89122913,1836.4,1836.0,11.68892161]